bitfinex/quotes_SOLUSD_20250621
["timestamp","ask_amount","ask_price","bid_price","bid_amount"]
[1750538579675,0.68,138.33,138.3,9.15026864]
[1750538580475,0.68,138.3,138.26,7.23274989]
[1750538580656,9.15026864,138.27,138.22,15.59026864]
[1750538580865,148.0,138.29,138.22,15.59026864]
[1750538580866,0.68,138.25,138.22,15.59026864]
[1750538581363,0.68,138.25,138.22,6.44]
[1750538581694,0.68,138.24,138.21,7.23520447]
[1750538581849,157.15026864,138.25,138.21,7.23520447]
[1750538582051,0.68,138.24,138.21,7.23520447]
[1750538583362,148.68,138.25,138.21,16.38547311]
[1750538584055,157.15026864,138.25,138.21,16.38547311]
[1750538584260,0.68,138.24,138.21,16.38547311]
[1750538585549,148.0,138.25,138.21,16.38547311]
[1750538585750,148.68,138.25,138.21,16.38547311]
[1750538585973,0.68,138.28,138.24,9.15026864]
[1750538586174,0.68,138.28,138.25,9.15026864]
[1750538586582,158.74636864,138.3,138.28,7.23170378]
[1750538586583,150.2761,138.3,138.28,7.23170378]
[1750538586787,148.68,138.3,138.27,9.15026864]
[1750538586991,0.68,138.29,138.26,9.15026864]
[1750538588087,0.68,138.29,138.27,7.2322268]
[1750538588590,148.68,138.3,138.27,16.38249544]
[1750538589220,148.0,138.3,138.29,9.15026864]
[1750538589490,148.0,138.3,138.28,9.15026864]
[1750538590160,148.0,138.3,138.29,7.23118085]
[1750538590365,9.83026864,138.32,138.28,9.15026864]
[1750538590565,0.68,138.31,138.28,9.15026864]
[1750538591464,0.68,138.31,138.29,7.23118085]
[1750538593196,0.68,138.31,138.27,9.15026864]
[1750538593197,9.88026864,138.31,138.27,9.15026864]
[1750538593495,0.73,138.3,138.27,9.15026864]
[1750538594670,0.73,138.28,138.24,16.38406493]
[1750538594871,148.0,138.3,138.27,9.15026864]
[1750538595576,148.73,138.3,138.27,16.3822466]
[1750538597371,148.73,138.3,138.27,7.23197796]
[1750538598793,0.73,138.29,138.27,7.23197796]
[1750538600702,0.73,138.29,138.27,16.3822466]
[1750538600902,148.73,138.3,138.27,16.3822466]
[1750538601088,148.73,138.3,138.25,7.23327305]
[1750538601286,148.73,138.3,138.27,9.15026864]
[1750538602200,0.73,138.29,138.27,9.15026864]
[1750538602399,0.73,138.29,138.26,9.15026864]
[1750538603400,0.73,138.29,138.27,16.38249544]
[1750538603701,148.0,138.3,138.27,16.38249544]
[1750538603904,148.73,138.3,138.27,16.38249544]
[1750538604103,148.0,138.3,138.27,9.15026864]
[1750538604479,0.73,138.29,138.27,9.15026864]
[1750538605209,148.0,138.3,138.27,9.15026864]
[1750538605506,148.73,138.3,138.27,9.15026864]
[1750538606607,148.73,138.3,138.27,16.38248335]
[1750538606915,148.73,138.3,138.27,7.23221471]
[1750538607282,0.73,138.29,138.26,16.3827815]
[1750538607993,0.73,138.29,138.26,7.23251286]
[1750538608206,0.73,138.29,138.26,16.3827815]
[1750538610596,148.0,138.3,138.28,9.15026864]
[1750538610800,148.0,138.34,138.3,0.69]
[1750538610981,148.0,138.34,138.32,9.15026864]
[1750538611384,148.0,138.34,138.33,9.15026864]
[1750538612488,160.64487453,138.37,138.33,9.84026864]
[1750538612708,5.39206921,138.36,138.33,0.69]
[1750538613009,160.64487453,138.37,138.35,9.15026864]
[1750538613210,160.64487453,138.37,138.36,16.37779104]
[1750538613392,12.64487453,138.37,138.36,16.37779104]
[1750538614409,12.64487453,138.37,138.36,17.06779104]
[1750538614914,12.64487453,138.37,138.36,16.37779104]
[1750538615297,12.64487453,138.37,138.36,7.2275224]
[1750538615994,12.64487453,138.37,138.36,16.37779104]
[1750538618317,12.64487453,138.37,138.36,17.06779104]
[1750538618501,12.64487453,138.37,138.36,16.37779104]
[1750538621390,12.64487453,138.37,138.36,17.12779104]
[1750538621995,12.64487453,138.37,138.36,16.37779104]
[1750538623896,12.64487453,138.37,138.36,17.12779104]
[1750538624401,150.2556,138.44,138.36,34.44659705]
[1750538624601,158.66586864,138.44,138.4,9.15026864]
[1750538624803,0.74,138.43,138.4,9.15026864]
[1750538625728,0.74,138.43,138.41,7.22491149]
[1750538626220,9.89026864,138.43,138.4,7.22524016]
[1750538626400,9.15026864,138.43,138.4,7.22524016]
[1750538626601,0.74,138.4,138.37,9.15026864]
[1750538627529,0.74,138.4,138.37,16.37726871]
[1750538627700,157.15026864,138.42,138.37,16.37726871]
[1750538627902,0.74,138.41,138.38,9.15026864]
[1750538629804,0.74,138.41,138.38,7.22647781]
[1750538630522,0.74,138.41,138.38,16.37674645]
[1750538630724,157.15026864,138.42,138.38,16.37674645]
[1750538630725,148.0,138.42,138.39,9.15026864]
[1750538632126,148.74,138.42,138.4,7.22543352]
[1750538632312,148.0,138.42,138.4,16.37570216]
[1750538632510,148.0,138.42,138.4,7.22543352]
[1750538632726,157.15026864,138.42,138.4,7.22543352]
[1750538632921,157.15026864,138.42,138.35,6.42]
[1750538632922,9.15026864,138.41,138.36,9.15026864]
[1750538633121,0.74,138.4,138.36,9.15026864]
[1750538634604,0.74,138.4,138.36,16.37779104]
[1750538636036,0.74,138.4,138.38,7.22647781]
[1750538636231,157.89026864,138.42,138.38,7.22647781]
[1750538636609,157.89026864,138.42,138.38,16.37674645]
[1750538638016,148.0,138.41,138.38,16.37674645]
[1750538638220,148.74,138.41,138.38,16.37674645]
[1750538638615,148.0,138.41,138.39,9.15026864]
[1750538639218,148.0,138.41,138.38,16.37674645]
[1750538639413,0.74,138.4,138.38,7.22647781]
[1750538640318,0.74,138.4,138.37,34.44473461]
[1750538640634,0.74,138.4,138.37,16.37726871]
[1750538640934,9.15026864,138.4,138.37,7.22700007]
[1750538641139,0.74,138.39,138.37,7.22700007]
[1750538641514,148.0,138.41,138.38,9.15026864]
[1750538642029,148.74,138.41,138.38,9.15026864]
[1750538642225,148.74,138.41,138.39,7.22595563]
[1750538643329,163.79308093,138.46,138.4,9.15026864]
[1750538643640,163.05308093,138.46,138.44,9.15026864]
[1750538644216,163.05308093,138.46,138.45,7.22282412]
[1750538647541,172.20334957,138.46,138.4,18.06356755]
[1750538647844,0.74,138.44,138.41,16.37518013]
[1750538649146,0.74,138.45,138.41,16.37518013]
[1750538649723,172.20334957,138.46,138.41,16.37518013]
[1750538650220,0.74,138.45,138.41,16.37518013]
[1750538650821,0.74,138.44,138.41,16.37518013]
[1750538652440,165.26348093,138.46,138.42,9.15026864]
[1750538652757,148.0,138.45,138.42,9.15026864]
[1750538653457,148.0,138.45,138.43,9.15026864]
[1750538654443,148.0,138.45,138.44,7.22334585]
[1750538654630,148.71,138.45,138.44,7.22334585]
[1750538655032,148.0,138.45,138.44,7.22334585]
[1750538655937,15.05308093,138.46,138.44,17.05361449]
[1750538656151,155.42728721,138.49,138.45,9.15026864]
[1750538656152,5.38470494,138.48,138.45,9.15026864]
[1750538656338,7.42728721,138.52,138.48,7.22125938]
[1750538656654,15.24308532,138.51,138.48,7.22125938]
[1750538656873,5.38281668,138.5,138.48,7.22125938]
[1750538657040,5.38281668,138.49,138.48,7.22125938]
[1750538658736,5.38281668,138.49,138.46,16.37257111]
[1750538659040,0.71,138.5,138.46,16.37257111]
[1750538659242,5.38381901,138.49,138.47,9.15026864]
[1750538659451,0.71,138.5,138.46,16.37257111]
[1750538659641,5.38227276,138.49,138.46,16.37257111]
[1750538659833,0.71,138.5,138.46,16.37257111]
[1750538660034,5.38251132,138.49,138.46,16.37257111]
[1750538660251,0.71,138.5,138.46,16.37257111]
[1750538660453,0.71,138.47,138.45,7.22267251]
[1750538660630,6.09241811,138.47,138.44,7.22334585]
[1750538660831,0.71,138.46,138.44,7.22334585]
[1750538661132,0.71,138.45,138.41,9.15026864]
[1750538661535,0.71,138.45,138.42,9.15026864]
[1750538662258,0.71,138.45,138.43,7.22386765]
[1750538664759,9.86026864,138.45,138.39,6.4]
[1750538664944,0.71,138.43,138.39,6.4]
[1750538665255,0.71,138.43,138.39,15.55026864]
[1750538665771,5.385873,138.45,138.42,9.15026864]
[1750538665936,26.0,138.47,138.43,9.15026864]
[1750538665937,5.385873,138.46,138.43,9.15026864]
[1750538666136,5.385873,138.45,138.43,9.15026864]
[1750538666363,5.385873,138.46,138.43,9.15026864]
[1750538666655,5.385873,138.45,138.43,9.15026864]
[1750538666856,5.385873,138.46,138.42,9.15026864]
[1750538667059,6.095873,138.45,138.41,16.37518013]
[1750538667363,6.095873,138.45,138.41,7.22491149]
[1750538667572,5.385873,138.44,138.41,7.22491149]
[1750538667876,9.86026864,138.44,138.41,7.22491149]
[1750538668060,9.86026864,138.44,138.4,18.06358381]
[1750538668061,0.71,138.42,138.4,7.22536789]
[1750538668263,9.86026864,138.42,138.4,7.22536789]
[1750538668446,0.71,138.41,138.4,7.22536789]
[1750538668651,9.86026864,138.41,138.38,7.22647781]
[1750538669048,9.15026864,138.4,138.38,7.22647781]
[1750538670376,9.86026864,138.41,138.37,16.37726871]
[1750538671072,9.15026864,138.41,138.37,16.37726871]
[1750538671277,14.53614164,138.42,138.37,16.37726871]
[1750538671473,15.24614164,138.42,138.37,16.37726871]
[1750538672174,15.24614164,138.42,138.38,9.15026864]
[1750538672363,14.53614164,138.42,138.37,34.44476889]
[1750538672554,0.71,138.41,138.37,34.44476889]
[1750538673747,0.71,138.41,138.37,18.06750018]
[1750538673947,0.71,138.41,138.38,9.15026864]
[1750538674167,14.53614164,138.42,138.38,9.15026864]
[1750538674371,15.24614164,138.42,138.38,9.15026864]
[1750538674558,15.24614164,138.42,138.37,27.21776882]
[1750538674758,0.71,138.4,138.36,16.37779104]
[1750538675074,15.24614164,138.41,138.37,9.15026864]
[1750538675252,15.24614164,138.42,138.37,9.15026864]
[1750538675455,5.385873,138.41,138.37,9.83026864]
[1750538675668,5.385873,138.41,138.38,7.22647781]
[1750538678860,6.095873,138.41,138.38,7.22647781]
[1750538680076,0.71,138.41,138.38,7.22647781]
[1750538680279,9.15026864,138.41,138.38,7.22647781]
[1750538680464,9.86026864,138.41,138.38,7.22647781]
[1750538680873,0.71,138.41,138.38,7.22647781]
[1750538681362,14.53614164,138.42,138.38,7.22647781]
[1750538681561,15.27614164,138.42,138.38,7.22647781]
[1750538682677,15.27614164,138.42,138.38,16.37674645]
[1750538682678,6.125873,138.42,138.38,16.37674645]
[1750538682877,6.125873,138.42,138.38,34.44294098]
[1750538683670,6.125873,138.42,138.38,25.29267234]
[1750538683854,15.27614164,138.42,138.38,25.29267234]
[1750538684059,15.27614164,138.42,138.38,34.44294098]
[1750538685183,15.27614164,138.42,138.38,25.29267234]
[1750538685385,15.27614164,138.42,138.38,34.44294098]
[1750538686181,14.53614164,138.42,138.38,34.44294098]
[1750538686384,5.385873,138.42,138.39,9.15026864]
[1750538687263,5.385873,138.42,138.4,7.22543352]
[1750538687664,148.0,138.43,138.4,16.37570216]
[1750538687886,148.0,138.43,138.41,9.15026864]
[1750538688184,148.0,138.43,138.42,9.15026864]
[1750538688386,148.0,138.48,138.42,9.15026864]
[1750538688694,153.38622434,138.47,138.45,9.15026864]
[1750538688896,148.0,138.47,138.45,9.15026864]
[1750538689388,148.0,138.47,138.46,7.22230247]
[1750538689598,0.74,138.46,138.44,7.22334585]
[1750538689778,148.74,138.46,138.44,7.22334585]
[1750538690683,0.74,138.45,138.43,7.22386765]
[1750538691672,0.74,138.45,138.42,16.37465817]
[1750538692194,148.0,138.46,138.42,16.37465817]
[1750538692398,148.0,138.46,138.43,9.15026864]
[1750538693298,148.74,138.46,138.44,7.22334585]
[1750538694321,148.74,138.46,138.42,9.15026864]
[1750538694799,157.89026864,138.46,138.42,9.15026864]
[1750538695001,0.74,138.45,138.42,9.15026864]
[1750538695299,148.0,138.46,138.43,9.15026864]
[1750538695478,148.0,138.46,138.43,9.86026864]
[1750538695990,148.0,138.46,138.43,9.15026864]
[1750538696474,148.0,138.46,138.44,7.22334585]
[1750538697093,148.0,138.46,138.44,16.37361449]
[1750538698195,148.74,138.46,138.44,16.37361449]
[1750538698381,148.74,138.46,138.44,7.22334585]
[1750538698794,0.74,138.45,138.44,7.22334585]
[1750538699308,0.74,138.45,138.43,7.22366623]
[1750538700387,148.0,138.46,138.43,16.37393487]
[1750538700591,148.74,138.46,138.43,16.37393487]
[1750538701311,148.0,138.46,138.43,16.37393487]
[1750538701485,148.0,138.46,138.44,9.15026864]
[1750538702104,148.74,138.46,138.43,16.37393487]
[1750538702678,157.15026864,138.46,138.42,7.22414906]
[1750538702894,0.74,138.44,138.42,7.22414906]
[1750538703699,9.89026864,138.44,138.42,7.22414906]
[1750538703895,0.74,138.44,138.42,7.22414906]
[1750538704097,0.74,138.44,138.41,7.22491149]
[1750538704404,5.39157515,138.44,138.41,16.37518013]
[1750538704700,5.39180601,138.44,138.41,16.37518013]
[1750538704881,6.13180601,138.44,138.41,16.37518013]
[1750538705201,5.39180601,138.44,138.36,1.6109]
[1750538705388,5.39180601,138.44,138.38,9.15026864]
[1750538705389,9.15026864,138.42,138.38,9.15026864]
[1750538705601,6.13409178,138.42,138.38,9.15026864]
[1750538705805,5.39409178,138.42,138.4,9.15026864]
[1750538706112,148.0,138.43,138.42,7.22438953]
[1750538706495,148.0,138.43,138.37,25.29323876]
[1750538706697,0.74,138.42,138.39,9.15026864]
[1750538706922,0.74,138.42,138.37,25.29323876]
[1750538707302,0.74,138.41,138.38,9.15026864]
[1750538707510,6.13463815,138.42,138.38,9.15026864]
[1750538707704,0.74,138.42,138.38,9.15026864]
[1750538707911,0.74,138.42,138.37,25.29323876]
[1750538708112,9.89026864,138.42,138.39,7.22595563]
[1750538708626,9.15026864,138.42,138.39,7.22595563]
[1750538708797,0.74,138.41,138.39,7.22595563]
[1750538709908,9.89026864,138.41,138.39,7.22595563]
[1750538710106,9.89026864,138.41,138.38,7.22647781]
[1750538710620,9.15026864,138.41,138.38,7.22647781]
[1750538710917,5.39536826,138.42,138.36,16.37779104]
[1750538710918,0.74,138.39,138.36,16.37779104]
[1750538711131,0.74,138.4,138.36,16.37779104]
[1750538711496,6.13601423,138.4,138.36,16.37779104]
[1750538711693,15.28628287,138.4,138.36,7.2275224]
[1750538711917,9.89026864,138.4,138.36,16.37779104]
[1750538712125,6.13586439,138.4,138.36,16.37779104]
[1750538712806,0.74,138.4,138.36,16.37779104]
[1750538713925,9.89026864,138.39,138.36,7.2275224]
[1750538714124,0.74,138.39,138.36,7.2275224]
[1750538714422,6.13514566,138.39,138.36,7.2275224]
[1750538715306,6.13514566,138.39,138.36,16.37779104]
[1750538715706,6.13428103,138.39,138.36,7.2275224]
[1750538716430,0.74,138.39,138.36,7.2275224]
[1750538717405,6.1337076,138.39,138.36,7.2275224]
[1750538717608,0.74,138.38,138.36,7.2275224]
[1750538719728,14.54397624,138.39,138.36,7.2275224]
[1750538720029,9.89026864,138.39,138.36,7.2275224]
[1750538720224,14.54397624,138.39,138.36,7.2275224]
[1750538720430,0.74,138.38,138.36,7.2275224]
[1750538721225,9.89026864,138.39,138.36,7.2275224]
[1750538721427,6.1337076,138.39,138.36,7.2275224]
[1750538721624,0.74,138.39,138.36,7.2275224]
[1750538723036,14.54397624,138.4,138.37,9.15026864]
[1750538723037,5.3937076,138.4,138.37,9.15026864]
[1750538723218,148.0,138.41,138.38,9.15026864]
[1750538723933,148.0,138.41,138.39,9.15026864]
[1750538725051,148.0,138.41,138.39,7.22595563]
[1750538725227,148.74,138.41,138.39,7.22595563]
[1750538725835,148.0,138.41,138.39,7.22595563]
[1750538727942,148.74,138.41,138.39,7.22595563]
[1750538729343,9.89026864,138.4,138.37,7.22700007]
[1750538729537,9.15026864,138.4,138.37,7.22700007]
[1750538729841,148.0,138.41,138.39,9.15026864]
[1750538730039,148.0,138.41,138.38,9.15026864]
[1750538730844,148.0,138.41,138.39,7.22595563]
[1750538732932,148.74,138.41,138.39,7.22595563]
[1750538733819,148.74,138.41,138.38,7.22647781]
[1750538734221,0.74,138.4,138.38,7.22647781]
[1750538734626,0.74,138.39,138.36,7.2275224]
[1750538734944,5.39188291,138.4,138.36,16.37779104]
[1750538735132,6.13188291,138.4,138.36,16.37779104]
[1750538736241,0.74,138.39,138.36,16.37779104]
[1750538738239,0.74,138.39,138.36,7.2275224]
[1750538738952,9.89026864,138.39,138.36,7.2275224]
[1750538739132,0.74,138.38,138.36,7.2275224]
[1750538743754,9.15026864,138.38,138.35,13.627835]
[1750538743933,0.71,138.37,138.35,13.627835]
[1750538744438,0.71,138.37,138.35,13.62792661]
[1750538744843,6.10902802,138.38,138.35,13.62792661]
[1750538745151,0.71,138.38,138.35,22.77819525]
[1750538746061,6.10861522,138.38,138.35,22.77819525]
[1750538746659,0.71,138.38,138.35,22.77819525]
[1750538748360,0.71,138.38,138.35,16.37819525]
[1750538748839,148.0,138.39,138.36,9.15026864]
[1750538749041,148.0,138.42,138.39,0.73]
[1750538749229,5.40364469,138.41,138.38,0.73]
[1750538749431,6.73738299,138.44,138.4,9.15026864]
[1750538749643,5.40355962,138.43,138.42,9.15026864]
[1750538750031,5.40355962,138.43,138.42,9.88026864]
[1750538750642,5.40355962,138.43,138.37,40.4634]
[1750538750643,9.86026864,138.45,138.37,40.4634]
[1750538750849,9.15026864,138.43,138.4,7.22491176]
[1750538751043,6.11250748,138.42,138.4,7.22491176]
[1750538751240,0.71,138.42,138.4,7.22491176]
[1750538751740,5.40444534,138.41,138.4,7.22491176]
[1750538753158,9.86026864,138.44,138.4,16.3751804]
[1750538753352,5.40406056,138.43,138.4,16.3751804]
[1750538753545,5.40406056,138.42,138.4,16.3751804]
[1750538753739,9.86026864,138.44,138.4,16.3751804]
[1750538753957,5.40364534,138.43,138.4,16.3751804]
[1750538754158,5.40364534,138.42,138.4,16.3751804]
[1750538754460,9.86026864,138.44,138.4,16.3751804]
[1750538754660,5.40338195,138.43,138.4,16.3751804]
[1750538754857,5.40338195,138.42,138.4,16.3751804]
[1750538755068,9.86026864,138.44,138.4,16.3751804]
[1750538755235,6.1130951,138.43,138.4,16.3751804]
[1750538755437,5.4030951,138.42,138.4,16.3751804]
[1750538755642,0.71,138.43,138.4,16.3751804]
[1750538755846,5.40283269,138.42,138.4,16.3751804]
[1750538756057,0.71,138.43,138.4,16.3751804]
[1750538756263,5.40274709,138.42,138.4,16.3751804]
[1750538756440,0.71,138.43,138.4,16.3751804]
[1750538756768,5.40274637,138.42,138.4,16.3751804]
[1750538756950,0.71,138.43,138.4,16.3751804]
[1750538757150,5.40216553,138.42,138.4,16.3751804]
[1750538757454,0.71,138.43,138.4,16.3751804]
[1750538757658,5.40216553,138.42,138.4,16.3751804]
[1750538757866,0.71,138.43,138.4,16.3751804]
[1750538758039,5.40177211,138.42,138.4,16.3751804]
[1750538758244,0.71,138.43,138.4,16.3751804]
[1750538758542,5.40177211,138.42,138.4,16.3751804]
[1750538758741,148.0,138.44,138.4,16.3751804]
[1750538758742,148.0,138.44,138.4,17.1051804]
[1750538758961,5.40119809,138.43,138.4,17.1051804]
[1750538759169,5.40119809,138.42,138.4,17.1051804]
[1750538759466,5.40095661,138.43,138.4,17.1051804]
[1750538759675,148.71,138.44,138.4,17.1051804]
[1750538759856,5.40044804,138.43,138.4,17.1051804]
[1750538760056,148.71,138.44,138.4,17.1051804]
[1750538760260,5.40040476,138.43,138.4,17.1051804]
[1750538760465,148.71,138.44,138.4,17.1051804]
[1750538760764,5.4003939,138.43,138.4,17.1051804]
[1750538761076,148.71,138.44,138.4,17.1051804]
[1750538761254,5.40038351,138.43,138.4,17.1051804]
[1750538761458,148.71,138.44,138.4,17.1051804]
[1750538761784,5.40010737,138.43,138.4,17.1051804]
[1750538761949,148.71,138.44,138.4,17.1051804]
[1750538762148,5.39998269,138.43,138.4,17.1051804]
[1750538762349,148.71,138.44,138.4,17.1051804]
[1750538762559,5.39977535,138.43,138.4,17.1051804]
[1750538762745,148.71,138.44,138.41,16.37476813]
[1750538763043,5.39983437,138.43,138.41,16.37476813]
[1750538763245,148.71,138.44,138.41,16.37476813]
[1750538763445,5.39968771,138.43,138.41,16.37476813]
[1750538763654,148.71,138.44,138.41,16.37476813]
[1750538763849,5.39965344,138.43,138.41,16.37476813]
[1750538764069,148.71,138.44,138.41,16.37476813]
[1750538764269,5.3995243,138.43,138.41,16.37476813]
[1750538764453,148.71,138.44,138.41,16.37476813]
[1750538764655,5.39927379,138.43,138.41,16.37476813]
[1750538764865,148.71,138.44,138.41,16.37476813]
[1750538765055,5.39931082,138.43,138.41,16.37476813]
[1750538765247,148.71,138.44,138.41,16.37476813]
[1750538765449,5.39910714,138.43,138.41,16.37476813]
[1750538765651,148.71,138.44,138.41,16.37476813]
[1750538765846,5.39918713,138.43,138.41,16.37476813]
[1750538766062,148.71,138.44,138.41,16.37476813]
[1750538766268,6.10918713,138.43,138.41,16.37476813]
[1750538766458,0.71,138.43,138.41,16.37476813]
[1750538768851,0.71,138.43,138.4,16.37570216]
[1750538771183,5.39847542,138.42,138.4,7.22543352]
[1750538771384,148.68,138.44,138.4,17.11570216]
[1750538771580,5.39870821,138.43,138.4,17.11570216]
[1750538771779,148.68,138.44,138.4,17.11570216]
[1750538772086,5.39833531,138.43,138.4,17.11570216]
[1750538772288,148.68,138.44,138.4,17.11570216]
[1750538772458,5.39818631,138.43,138.4,17.11570216]
[1750538772659,148.68,138.44,138.41,9.15026864]
[1750538773581,0.68,138.46,138.42,9.15026864]
[1750538773891,148.0,138.48,138.45,9.15026864]
[1750538774192,148.0,138.51,138.47,16.37204953]
[1750538774405,5.39331225,138.5,138.48,9.15026864]
[1750538774587,0.68,138.48,138.46,7.22220522]
[1750538774758,0.68,138.48,138.43,27.20978157]
[1750538774759,0.68,138.46,138.43,27.20978157]
[1750538775093,0.68,138.48,138.44,9.15026864]
[1750538775395,5.39349784,138.47,138.44,9.15026864]
[1750538775698,0.68,138.48,138.44,16.37361449]
[1750538775904,5.39321813,138.47,138.44,16.37361449]
[1750538776912,6.07321813,138.47,138.45,16.37302826]
[1750538777192,0.68,138.47,138.45,16.37302826]
[1750538777485,0.68,138.45,138.44,7.22317137]
[1750538777789,0.68,138.46,138.44,7.22317137]
[1750538778088,6.07077225,138.46,138.44,7.22317137]
[1750538778285,5.39077225,138.45,138.42,9.15026864]
[1750538778474,6.07077225,138.45,138.42,9.15026864]
[1750538778659,5.39077225,138.45,138.42,16.3744543]
[1750538778863,6.07077225,138.44,138.42,16.3744543]
[1750538779078,0.68,138.44,138.42,16.3744543]
[1750538781978,6.0705734,138.44,138.42,16.3744543]
[1750538782180,0.68,138.44,138.42,16.3744543]
[1750538782380,6.0705734,138.44,138.42,16.3744543]
[1750538782587,0.68,138.44,138.42,16.3744543]
[1750538782908,6.0705734,138.44,138.42,16.3744543]
[1750538783106,0.68,138.44,138.42,16.3744543]
[1750538783279,6.0705734,138.44,138.42,16.3744543]
[1750538783485,0.68,138.44,138.42,16.3744543]
[1750538783683,6.0705734,138.44,138.42,16.3744543]
[1750538783894,0.68,138.44,138.42,16.3744543]
[1750538784099,6.0705734,138.44,138.42,16.3744543]
[1750538784421,0.68,138.44,138.42,16.3744543]
[1750538784585,6.0705734,138.44,138.42,16.3744543]
[1750538784786,0.68,138.44,138.42,16.3744543]
[1750538784992,6.0705734,138.44,138.42,16.3744543]
[1750538785191,5.3905734,138.45,138.43,9.15026864]
[1750538785498,5.3905734,138.46,138.43,9.15026864]
[1750538785681,0.68,138.46,138.43,9.15026864]
[1750538785882,6.07226486,138.45,138.43,9.15026864]
[1750538786201,0.68,138.45,138.43,9.15026864]
[1750538786688,0.68,138.45,138.42,7.22418566]
[1750538786689,0.68,138.45,138.42,16.3744543]
[1750538786894,5.39239526,138.44,138.42,16.3744543]
[1750538787395,0.68,138.45,138.42,16.3744543]
[1750538787812,148.0,138.47,138.44,9.15026864]
[1750538788109,148.0,138.47,138.45,9.15026864]
[1750538789283,148.0,138.47,138.46,7.22230247]
[1750538789483,153.39345103,138.47,138.46,7.22230247]
[1750538789683,153.39345103,138.47,138.46,16.37257111]
[1750538790499,148.0,138.47,138.46,17.11257111]
[1750538790701,7.41738299,138.53,138.46,52.01805864]
[1750538791005,0.68,138.51,138.48,9.15026864]
[1750538791192,5.39551445,138.5,138.48,9.15026864]
[1750538791500,5.39551445,138.49,138.46,33.22230247]
[1750538791716,5.39551445,138.48,138.46,7.22230247]
[1750538791894,6.07551445,138.47,138.45,7.22267338]
[1750538792202,5.39551445,138.46,138.45,7.22267338]
[1750538792512,155.41738299,138.52,138.48,26.0]
[1750538792713,0.68,138.5,138.47,9.15026864]
[1750538792999,5.39720052,138.49,138.47,9.15026864]
[1750538793200,5.39720052,138.48,138.47,9.15026864]
[1750538794493,5.39720052,138.48,138.47,16.37204953]
[1750538796216,0.68,138.55,138.48,0.74]
[1750538796391,5.39231076,138.54,138.51,9.15026864]
[1750538796714,5.39231076,138.53,138.51,9.15026864]
[1750538797017,29.24277516,138.56,138.51,9.15026864]
[1750538797198,0.68,138.54,138.48,4.43991614]
[1750538797509,5.39232916,138.53,138.5,9.15026864]
[1750538797704,5.39232916,138.53,138.51,9.15026864]
[1750538798083,5.39232916,138.55,138.52,9.15026864]
[1750538798390,5.39232916,138.55,138.48,12.85018478]
[1750538798391,5.39232916,138.54,138.53,16.36892163]
[1750538798720,5.39232916,138.55,138.53,16.36892163]
[1750538799020,13.35512353,138.56,138.54,9.15026864]
[1750538799314,13.35512353,138.56,138.55,9.15026864]
[1750538799681,5.38493624,138.57,138.55,9.15026864]
[1750538800302,6.06493624,138.58,138.55,9.15026864]
[1750538800507,6.06493624,138.58,138.56,7.21709006]
[1750538802720,5.38493624,138.58,138.57,9.15026864]
[1750538802915,6.36193584,138.6,138.57,9.15026864]
[1750538803714,6.36193584,138.6,138.58,9.15026864]
[1750538804014,0.9769996,138.6,138.58,9.15026864]
[1750538804593,0.9769996,138.6,138.59,16.36579645]
[1750538805614,0.9769996,138.6,138.54,6.2956]
[1750538805615,10.12726824,138.6,138.55,16.36787961]
[1750538805807,0.74,138.59,138.55,16.36787961]
[1750538806005,10.12726824,138.6,138.55,16.36787961]
[1750538806205,9.89026864,138.58,138.53,7.21865299]
[1750538806402,35.15026864,138.59,138.55,9.15026864]
[1750538806593,0.74,138.58,138.55,9.15026864]
[1750538806991,0.74,138.58,138.55,16.36778747]
[1750538807215,35.15026864,138.59,138.55,7.21751883]
[1750538807520,0.74,138.58,138.55,7.21751883]
[1750538807896,35.15026864,138.59,138.55,7.21751883]
[1750538808090,0.74,138.58,138.55,7.21751883]
[1750538808501,35.15026864,138.59,138.55,7.21751883]
[1750538808912,0.74,138.58,138.55,7.21751883]
[1750538809108,35.15026864,138.59,138.55,7.21751883]
[1750538809307,0.74,138.58,138.55,7.21751883]
[1750538809506,0.74,138.58,138.55,16.36778747]
[1750538809899,35.15026864,138.59,138.55,16.36778747]
[1750538810103,0.74,138.58,138.55,16.36778747]